[Event "Cattolica Chess Festival 2022"]
[Site "Cattolica"]
[Date "2022.06.05"]
[Round "2.9"]
[White "Paleologu, Vladimir"]
[Black "Willow, Jonah B"]
[Result "0-1"]
[ECO "B71"]
[WhiteElo "2008"]
[BlackElo "2401"]
[Annotator "TA"]
[PlyCount "114"]
[EventDate "2022.06.04"]
[EventCountry "ITA"]
[SourceTitle "playchess.com"]
[Source "ChessBase"]
[SourceQuality "1"]
[TimeControl "5400+30"]

{[%evp 17,114,0,0,0,0,0,1,14,12,-15,0,-17,36,22,40,42,23,25,30,9,15,0,23,0,0,0,43,55,45,50,127,0,0,0,347,121,150,81,75,77,48,66,133,37,34,25,43,0,0,-26,-32,-23,-16,-17,-20,-17,-18,-19,0,-132,-124,-128,-114,-210,-210,-208,-203,-203,-206,-568,-564,-595,-579,-29960,-29961,-29959,-29961,-29963,-29964,-29963,-29966,-29983,-280,-265,-163,-163,-147,-6083,-5257,-1745,-657,-6234,-6083,-29970,-29971,-29971,-29969,-29991,-29992]} 1. e4 {[%emt 1:31:00]} c5 {[%emt 0:30:08]} 2. Nf3 {[%emt 0:00:00]} Nc6 {[%emt 0:00:27]} 3. d4 {[%emt 0:00:00]} cxd4 {[%emt 0:00:05]} 4. Nxd4 {[%emt 0:00:00]} g6 {[%emt 0:02:20]} 5. f4 {[%emt 0:00:00]} Bg7 {[%emt 0:01:51]} 6. Nf3 {[%emt 0:00:00]} d6 {[%emt 0:01:15]} 7. Nc3 {[%emt 0:00:00]} Nf6 {[%emt 0:00:46]} 8. Bd3 {[%emt 0:00:00]} O-O {[%emt 0:00:57]} 9. O-O {[%emt 0:00:00]} a6 {[%emt 0:04:51] 9...Bg4 is the hot move.} 10. a3 {[%emt 0:00:00] B71: Sicilian Dragon: 6 f4.} b5 {[%emt 0:00:57]} 11. Kh1 {[%emt 0:00:00]} Bb7 {[%emt 0:00:38]} 12. Qe1 {[%emt 0:00:00] The position is equal.} e6 {[%emt 0:15:27]} 13. Bd2 {[%emt 0:00:00]} (13. f5 {seems wilder.} Qe7 14. Qh4 Nd7 15. Bg5) 13... Rc8 {[%emt 0:01:29] [#]} 14. Rd1 $146 {[%emt 0:00:00]} ({Predecessor:} 14. Qh4 Nh5 15. Qh3 f5 16. Rae1 Qd7 17. exf5 exf5 18. Nd5 Rce8 19. Bc3 Bxc3 20. Nxc3 Nxf4 {0-1 (38) Dushyant,S (2270)-Sapunov,E (2461) Chess.com INT 2021}) 14... b4 {[%emt 0:04:08]} (14... Re8 $11) 15. Nb1 $14 {[%emt 0:00:00]} bxa3 {[%emt 0:04:18]} 16. Nxa3 {[%emt 0:00:00]} Nd7 {[%emt 0:00:46]} 17. c3 {[%emt 0:00:00]} Qe7 {[%emt 0:04:24]} 18. Bb1 {[%emt 0:00:00]} a5 {[%emt 0:01:19]} 19. Be3 {[%emt 0:00:00]} Nf6 {[%emt 0:04:32]} 20. Nc4 {[%emt 0:00:00]} Ba6 {[%emt 0:08:06]} 21. Nxd6 {[%emt 0:00:00]} Rcd8 {[%emt 0:00:33] [#]} 22. Bc5 $1 {[%emt 0:00:00]} Bxf1 {[%emt 0:00:15]} 23. Qxf1 {[%emt 0:00:00]} e5 {[%emt 0:03:21]} (23... Qc7 $14) 24. b4 {[%emt 0:00:00]} ({Better is} 24. Ba2 $16 {Hoping for Ng5.} Ne8 25. fxe5) 24... axb4 $11 {[%emt 0:00:39]} 25. cxb4 {[%emt 0:00:00]} Qe6 {[%emt 0:01:38][%mdl 8192] Inhibits Ba2.} (25... exf4 $11 {and Black stays safe.} 26. Ng5 Ng4 27. Ngxf7 Ra8) 26. f5 $2 {[%emt 0:00:00]} (26. Ng5 $18 Qb3 27. Rd3 (27. b5 Na5 $16)) 26... Qb3 $16 {[%emt 0:00:43]} 27. Rd3 {[%emt 0:00:00]} (27. Bd3 $142 $1 {[%cal Rd3c4]} Rxd6 28. Bxd6) 27... Qa4 {[%emt 0:02:41]} 28. b5 {[%emt 0:00:00]} Nb4 {[%emt 0:00:19]} 29. Rd2 {[%emt 0:00:47]} Nd7 {[%emt 0:00:23] [#]} (29... Qb3 $1 $14) 30. Nb7 {[%emt 0:01:44]} ({White should play} 30. Nxf7 $1 $16 {[%mdl 512]} Rxf7 31. Ng5 (31. Qc4 Bf6 $16)) 30... Nxc5 $14 {[%emt 0:02:07][%cal Bd7c5,Bc5e4,Be4c3][%mdl 32]} 31. Nxd8 {[%emt 0:00:16]} Bf6 {[%emt 0:00:00]} 32. Nc6 {[%emt 0:00:00]} Nxc6 {[%emt 0:00:00]} 33. Ra2 {[%emt 0:00:00] [#]} Qb4 {[%emt 0:00:00][%cal Of8b8]} 34. bxc6 {[%emt 0:13:43]} Nxe4 {[%emt 0:00:00] Strongly threatening ...Nc3.} 35. fxg6 {[%emt 0:00:00]} hxg6 {[%emt 0:00:00] White must now prevent ...Nc3.} 36. Rc2 {[%emt 0:00:00]} Nc3 {[%emt 0:00:00] aiming for ...e4.} 37. Nd2 {[%emt 0:00:00]} Bg5 {[%emt 0:00:00] Threatens to win with ...Bxd2.} 38. Nf3 {[%emt 0:00:00] [#]} (38. Qc4 $11 {keeps the balance.} Qxc4 39. Nxc4) 38... Bf4 $1 $17 {[%emt 0:00:00] 0x0.001aa05153f8dp-1022s more active pieces.} 39. Ba2 {[%emt 0:00:00]} ({Much weaker is} 39. Qe1 Qxb1 40. Qxb1 (40. Rxc3 $2 Qxe1+ 41. Nxe1 Bd2 $19) 40... Nxb1 $19) 39... e4 {[%emt 0:00:00]} 40. Nh4 {[%emt 0:00:00]} (40. Ng1 $17 {was worth a try.} Be5 41. Bc4) 40... Nxa2 $19 {[%emt 0:01:47]} 41. Rxa2 {[%emt 0:00:00]} Bg5 $40 {[%emt 0:00:16][%mdl 128] Black attacks with force.} 42. g3 {[%emt 0:00:00]} Qc5 {[%emt 0:01:19] Prevents Rc2.} 43. Qa6 $2 {[%emt 0:00:00]} (43. Re2) 43... Rd8 {[%emt 0:02:23]} 44. Qa4 {[%emt 0:00:00] Inhibits Rd1+.} Bxh4 {[%emt 0:00:30]} 45. gxh4 {[%emt 0:00:00][%mdl 4096] Endgame KQR-KQR} e3 {[%emt 0:00:24]} 46. Kg2 {[%emt 0:00:00]} Rd4 {[%emt 0:01:11]} 47. Qa8+ {[%emt 0:00:00]} Kg7 {[%emt 0:00:20]} 48. c7 {[%emt 0:00:00]} Qxc7 {[%emt 0:00:16]} 49. Re2 {[%emt 0:00:00]} Qf4 $2 {[%emt 0:00:27]} (49... Rg4+ {mates} 50. Kh3 Qf4 51. Qa1+ Kh7 52. Qf6 Qxf6 53. Kxg4 Qf5+ 54. Kg3 Qe4 55. Re1 f5 56. h3 f4+ 57. Kh2 Qc2+ 58. Kh1 f3 59. Rg1 Qf2 60. h5 e2 61. hxg6+ Kg7 62. Rg5 e1=Q+ 63. Rg1 Qfxg1#) 50. Qf3 {[%emt 0:00:00]} Qxh4 {[%emt 0:01:31]} 51. Qxe3 {[%emt 0:00:00]} Qg4+ {[%emt 0:00:20]} 52. Kf2 $2 {[%emt 0:00:00][%mdl 8192]} (52. Kh1 $17) 52... Rf4+ {[%emt 0:00:30]} 53. Ke1 {[%emt 0:00:00]} Qh4+ {[%emt 0:00:20]} (53... Kh7 $142 54. Qg3 Qf5) 54. Qg3 {[%emt 0:00:00]} Qf6 {[%emt 0:00:02] ( -> ...Rf1+)} 55. Qa3 {[%emt 0:00:00]} Rf1+ {[%emt 0:00:09] Black mates.} 56. Kd2 {[%emt 0:00:00]} Qd4+ {[%emt 0:00:02]} 57. Kc2 {[%emt 0:00:00]} Qd1+ {[%emt 0:00:06] Black used his chance.  Weighted Error Value: White=0.84/Black=0.50} 0-1

[Event "Cattolica Chess Festival 2022"]
[Site "Cattolica"]
[Date "2022.06.05"]
[Round "2.10"]
[White "Mashchenko, Tamila"]
[Black "Trost, Edvin"]
[Result "0-1"]
[ECO "A53"]
[WhiteElo "1938"]
[BlackElo "2366"]
[Annotator "TA"]
[PlyCount "56"]
[EventDate "2022.06.04"]
[EventCountry "ITA"]
[SourceTitle "playchess.com"]
[Source "ChessBase"]
[SourceQuality "1"]
[TimeControl "5400+30"]

{[%evp 12,55,53,25,52,37,55,55,93,49,73,-3,-13,-70,-42,-27,-15,-43,-41,-60,-62,-46,-44,-293,-310,-303,-282,-275,-270,-597,-556,-631,-635,-615,-628,-679,-641,-1666,-1559,-29986,-29987,-29993,-29994,-29998,-29999,-29999]} 1. d4 {[%emt 0:41:47]} Nf6 {[%emt 0:30:26]} 2. c4 {[%emt 0:00:19]} d6 {[%emt 0:02:02]} 3. Nc3 {[%emt 0:00:27]} Nbd7 {[%emt 0:01:00]} 4. e4 {[%emt 0:00:17]} e5 {[%emt 0:00:18]} 5. d5 {[%emt 0:03:06]} Be7 {[%emt 0:01:10]} 6. Be3 {[%emt 0:09:59]} O-O {[%emt 0:01:27]} 7. f3 {[%emt 0:01:41]} Nh5 {[%emt 0:03:53] A53: Old Indian Defence without Nf3.} 8. g3 {[%emt 0:03:45] [#]} g6 $146 {[%emt 0:01:09]} ({Predecessor:} 8... f5 9. exf5 Bg5 10. Qd2 Be7 11. Ne4 a5 12. Nh3 Nb6 13. g4 Bh4+ 14. Kd1 Nf6 15. Bg5 Nxe4 16. fxe4 Bxg5 17. Nxg5 {0-1 (38) Emrich,E (1760)-Heymann,W (1851) Hofheim 2013}) 9. Qd2 {[%emt 0:06:00]} f5 {[%emt 0:01:33] White is slightly better.} 10. Bh6 {[%emt 0:04:55]} Rf7 {[%emt 0:02:09]} 11. Nh3 {[%emt 0:00:14] Prevents f4.} (11. exf5 $16 gxf5 12. Nh3) 11... f4 $1 $11 {[%emt 0:02:49]} 12. gxf4 {[%emt 0:03:09]} (12. O-O-O $11) 12... Bh4+ {[%emt 0:01:05]} (12... exf4 $5 {[%cal Re7h4]} 13. Qg2 Bf8 14. Bxf8 Rxf8 $11) 13. Kd1 {[%emt 0:01:03][%cal Of4f5]} Nxf4 {[%emt 0:03:35]} 14. Nxf4 {[%emt 0:00:24]} exf4 {[%emt 0:00:18]} 15. Bxf4 {[%emt 0:01:52]} Qf6 $1 {[%emt 0:03:07]} 16. Ne2 {[%emt 0:04:56]} Ne5 $36 {[%emt 0:03:40][%mdl 2048] Black has good play.} 17. Bxe5 {[%emt 0:00:32] White does not recover from this.} (17. Qc3 $1 $15) 17... Qxf3 $19 {[%emt 0:00:53]} ({Stronger than} 17... dxe5 18. Bg2 $17) 18. Rg1 {[%emt 0:01:37] [#] Hoping for Bd4.} dxe5 {[%emt 0:00:08] Really sharp!} 19. Bg2 {[%emt 0:00:21]} Qh5 {[%emt 0:00:30]} 20. h3 $2 {[%emt 0:11:00]} ({But not} 20. Kc2 $2 Rf2 21. Rae1 Bg4 $19) (20. Rf1 {nothing else works.} Rxf1+ 21. Bxf1) 20... Rf2 {[%emt 0:00:32]} 21. Qd3 {[%emt 0:00:39]} Bd7 {[%emt 0:00:28]} 22. Rc1 {[%emt 0:01:04]} Raf8 {[%emt 0:00:35]} 23. b3 {[%emt 0:02:13]} Bg5 {[%emt 0:00:55] A strong pair of Bishops.} 24. Rb1 {[%emt 0:00:10] [#]} Bxh3 $1 {[%emt 0:02:28][%mdl 512]} 25. Bxh3 {[%emt 0:00:21]} (25. Re1 Bxg2) 25... R8f3 {[%emt 0:00:10] Black mates.} 26. Qc2 {[%emt 0:00:37]} Qxh3 {[%emt 0:00:30]} 27. Rxg5 {[%emt 0:00:39]} Qf1+ {[%emt 0:00:08]} 28. Kd2 {[%emt 0:00:05]} Rxe2# {[%emt 0:00:05] Weighted Error Value: White=1.04/Black=0.08 (flawless)} 0-1

[Event "Cattolica Chess Festival 2022"]
[Site "Cattolica"]
[Date "2022.06.06"]
[Round "3.1"]
[White "Pantsulaia, Levan"]
[Black "Padmini, Rout"]
[Result "1-0"]
[ECO "B38"]
[WhiteElo "2587"]
[BlackElo "2348"]
[Annotator "TA"]
[PlyCount "69"]
[EventDate "2022.06.04"]
[EventCountry "ITA"]
[SourceTitle "playchess.com"]
[Source "ChessBase"]
[SourceQuality "1"]
[TimeControl "5400+30"]

{[%evp 19,69,37,52,37,37,50,20,27,73,47,80,93,120,87,121,109,102,117,142,147,245,276,276,278,254,195,199,204,214,197,298,266,408,407,416,389,404,411,404,398,441,441,441,432,615,610,600,570,600,600,1402,734]} 1. Nf3 {[%emt 0:30:03]} c5 {[%emt 0:33:03]} 2. c4 {[%emt 0:00:12]} Nc6 {[%emt 0:00:21]} 3. d4 {[%emt 0:06:17]} cxd4 {[%emt 0:00:26]} 4. Nxd4 {[%emt 0:00:05]} Nf6 {[%emt 0:00:24]} 5. Nc3 {[%emt 0:00:08]} g6 {[%emt 0:00:38]} 6. e4 {[%emt 0:01:17]} d6 {[%emt 0:00:25]} 7. Be2 {[%emt 0:00:17]} Bg7 {[%emt 0:00:17]} 8. Be3 {[%emt 0:00:18]} O-O {[%emt 0:00:40]} 9. O-O {[%emt 0:00:14]} Bd7 {[%emt 0:00:26]} 10. Nc2 {[%emt 0:01:34]} Qa5 {[%emt 0:01:48]} 11. h3 $5 {[%emt 0:02:38][%mdl 4] An interesting side line. B38: Sicilian: Maroczy Bind with 5...Bg7 and 7...0-0.} Rfc8 {[%emt 0:02:31] [#]} 12. Qe1 $146 {[%emt 0:04:11]} ({Predecessor:} 12. Na3 Be6 13. f4 Nd7 14. Nab5 a6 15. f5 axb5 16. fxe6 fxe6 17. Bg4 Nd8 18. Nd5 exd5 19. Bxd7 Rxc4 20. Qxd5+ {½-½ (40) Froewis,G (2433)-Petursson,M (2520) Reykjavik 2015}) 12... a6 {[%emt 0:06:34]} 13. a4 {[%emt 0:10:29] Prevents b5. The position is equal.} Qd8 {[%emt 0:02:16]} (13... Be6 $11) 14. f4 {[%emt 0:08:30]} Na5 {[%emt 0:01:45]} 15. e5 {[%emt 0:03:31]} Ne8 {[%emt 0:02:08] [#]} 16. Nd5 $1 {[%emt 0:09:28] Bb6 is the strong threat.} Nxc4 {[%emt 0:00:21]} 17. Bxc4 {[%emt 0:00:06][%mdl 64] Remove Defender} (17. Qh4 Nxe3 18. Ncxe3 e6 19. Qxd8 (19. Ne7+ $2 Kf8 $19) 19... Rxd8 $17) 17... Rxc4 {[%emt 0:00:11]} 18. Bb6 {[%emt 0:00:08]} Nc7 {[%emt 0:10:17]} 19. Nce3 {[%emt 0:10:38] 0x0.001aa0baa830dp-1022s more active pieces.} ({Resist} 19. Nxc7 $6 Rxc2 20. Nxa8 Qxa8 $14) ({And not} 19. Bxc7 Rxc7 20. Nxc7 Qxc7 $17) 19... Nxd5 {[%emt 0:03:31]} (19... Rc6 $16) 20. Bxd8 $18 {[%emt 0:00:12]} Nxe3 {[%emt 0:00:08]} 21. Qxe3 {[%emt 0:01:35]} Rxd8 {[%emt 0:00:03]} 22. b3 {[%emt 0:00:42]} Rcc8 {[%emt 0:00:33]} 23. Rac1 {[%emt 0:03:49]} dxe5 {[%emt 0:05:25]} 24. fxe5 {[%emt 0:00:16] Strongly threatening Qf3.} Rxc1 {[%emt 0:01:32]} (24... Bc6 {was necessary.} 25. Qf4 f5 26. exf6 Bxf6) 25. Rxc1 {[%emt 0:00:07]} ({Weaker is} 25. Qxc1 Bxe5 26. Qc5 Bd6 $16) 25... Bc6 {[%emt 0:01:33]} (25... Be6 $142 26. Qb6 Rd3 27. Qxb7 Bxe5 28. Qxe7 Rxb3) 26. Qb6 {[%emt 0:00:45]} Rd2 {[%emt 0:01:56]} 27. Rxc6 {[%emt 0:00:45]} bxc6 {[%emt 0:00:07]} 28. Qxa6 {[%emt 0:01:40]} Bxe5 {[%emt 0:00:42]} 29. Qxc6 {[%emt 0:01:01][%mdl 4096] Endgame KQ-KRB} Rb2 {[%emt 0:10:43]} 30. Qc5 {[%emt 0:01:50][%csl LRe5,LRe7] White is clearly winning.} Rb1+ {[%emt 0:05:43]} 31. Kf2 {[%emt 0:00:47]} Rb2+ {[%emt 0:00:39]} (31... Ba1 $142 32. Qxe7 Rb2+ 33. Kg1 Rxb3) 32. Kf1 {[%emt 0:00:05]} Rb1+ {[%emt 0:01:23]} 33. Ke2 {[%emt 0:00:06]} Bd6 {[%emt 0:01:49]} 34. Qc2 {[%emt 0:00:42]} Ra1 {[%emt 0:00:22]} 35. Qc8+ {[%emt 0:00:10] White took control after the opening.  Weighted Error Value: White=0.05 (flawless) /Black=0.39} 1-0

[Event "Cattolica Chess Festival 2022"]
[Site "Cattolica"]
[Date "2022.06.06"]
[Round "3.2"]
[White "Willow, Jonah B"]
[Black "Basso, Pier Luigi"]
[Result "0-1"]
[ECO "C48"]
[WhiteElo "2401"]
[BlackElo "2570"]
[Annotator "TA"]
[PlyCount "120"]
[EventDate "2022.06.04"]
[EventCountry "ITA"]
[SourceTitle "playchess.com"]
[Source "ChessBase"]
[SourceQuality "1"]
[TimeControl "5400+30"]

{[%evp 16,120,20,24,25,15,16,11,52,25,26,10,10,16,22,23,25,1,21,0,0,0,0,0,-4,-12,-6,-13,-8,-7,-12,-14,-14,-14,-8,-20,0,-1,-5,-6,0,-6,0,0,0,-7,0,-14,0,0,0,0,0,0,0,-8,0,-129,-121,-119,0,-77,-77,-77,-77,-78,-79,-171,-172,-194,-169,-248,-237,-264,-242,-237,-217,-417,-410,-385,-387,-595,-548,-511,-487,-6355,-6355,-5771,-6012,-5591,-5558,-4602,-4602,-29974,-29975,-29978,-29979,-29979,-29980,-29980,-29981,-29981,-29982,-29981,-29981,-29981,-29982]} 1. e4 {[%emt 0:30:25]} e5 {[%emt 1:03:29]} 2. Nf3 {[%emt 0:00:08]} Nc6 {[%emt 0:00:26]} 3. Nc3 {[%emt 0:00:09]} Nf6 {[%emt 0:00:06]} 4. Bb5 {[%emt 0:00:05]} Nd4 {[%emt 0:00:30]} 5. Nxd4 {[%emt 0:00:54]} exd4 {[%emt 0:01:54]} 6. e5 {[%emt 0:00:02]} dxc3 {[%emt 0:00:04]} 7. exf6 {[%emt 0:00:03]} Qxf6 {[%emt 0:00:10]} 8. dxc3 {[%emt 0:00:03]} Qe5+ {[%emt 0:00:22]} 9. Be2 {[%emt 0:00:28]} b6 $5 {[%emt 0:05:09][%mdl 4] Exploring less charted territory. C48: Four Knights: 4 Bb5, replies other than 4...Bb4.} 10. Be3 {[%emt 0:00:07]} Bb7 {[%emt 0:00:10]} 11. Bf3 {[%emt 0:00:03] [#]} d5 $146 {[%emt 0:04:53] The position is equal.} ({Predecessor:} 11... O-O-O 12. Bxb7+ Kxb7 13. Qf3+ d5 14. O-O-O Be7 15. Bd4 Bg5+ 16. Kb1 Qf4 17. Qd3 Qe4 18. Bxg7 {1-0 (50) Bar Ziv,I (2197)-Huzita,S (2181) ICCF email 2015}) 12. Qd4 {[%emt 0:10:43]} (12. Qd3 {is interesting.} Bc5 13. O-O Bxe3 14. Rfe1) 12... Qxd4 {[%emt 0:00:25]} 13. cxd4 {[%emt 0:04:25]} Bd6 {[%emt 0:00:28]} 14. O-O {[%emt 0:04:52]} O-O-O {[%emt 0:02:00]} 15. Rfe1 {[%emt 0:00:21]} c6 {[%emt 0:00:24]} 16. Bg5 {[%emt 0:00:49]} Rde8 {[%emt 0:00:25]} 17. Bh5 {[%emt 0:08:41]} Rxe1+ {[%emt 0:04:04]} 18. Rxe1 {[%emt 0:00:02]} f6 {[%emt 0:00:08]} 19. Bh4 {[%emt 0:00:44]} Rf8 {[%emt 0:04:09]} 20. Bg3 {[%emt 0:01:23]} Bxg3 {[%emt 0:02:48]} 21. hxg3 $11 {[%emt 0:00:54][%mdl 4096] Endgame KRB-KRB} Kd7 {[%emt 0:00:04] Against Re7+} 22. Bg4+ {[%emt 0:00:29]} f5 {[%emt 0:00:24]} 23. Bf3 {[%emt 0:00:24]} Kd6 {[%emt 0:00:10]} 24. Re3 {[%emt 0:05:31]} Bc8 {[%emt 0:00:30]} 25. b4 {[%emt 0:02:18]} f4 {[%emt 0:02:10]} 26. gxf4 {[%emt 0:09:47]} Rxf4 {[%emt 0:00:03]} 27. c3 {[%emt 0:00:07]} Be6 {[%emt 0:00:29]} 28. g3 {[%emt 0:08:22]} Rf7 {[%emt 0:00:21]} 29. Bd1 {[%emt 0:01:38]} Rf8 {[%emt 0:03:31]} 30. Bc2 {[%emt 0:01:57]} h6 {[%emt 0:00:06]} 31. Kg2 {[%emt 0:03:34]} Ra8 {[%emt 0:04:44]} 32. f4 {[%emt 0:00:00]} a5 {[%emt 0:00:00] aiming for ...axb4.} 33. a3 {[%emt 0:00:00]} Rc8 {[%emt 0:00:00]} 34. f5 {[%emt 0:00:00]} Bd7 {[%emt 0:00:00]} 35. Re5 {[%emt 0:00:00]} Ra8 {[%emt 0:00:00]} 36. b5 {[%emt 0:00:00]} (36. g4 $11) 36... cxb5 $17 {[%emt 0:00:00]} 37. Bb3 {[%emt 0:00:00]} Rf8 {[%emt 0:00:00]} (37... b4 $1 $17 {...a4 is the strong threat.} 38. cxb4 (38. Rxd5+ $2 Kc7 $19) (38. axb4 axb4 39. cxb4 Ra3 $17) 38... axb4 39. axb4 (39. Rxd5+ $2 Kc7 $19) 39... Ra3 40. Bxd5 Rd3) 38. Rxd5+ {[%emt 0:00:40] [#]} (38. g4 $1 $11 {keeps the balance.}) 38... Kc7 $1 {[%emt 0:00:00] White must now prevent ...Bc6. Black continues to play with concentration.} 39. Re5 {[%emt 0:00:13]} Bxf5 {[%emt 0:00:00]} 40. Bd1 {[%emt 0:05:23]} Bd3 {[%emt 0:00:00]} 41. Re7+ {[%emt 0:00:16]} (41. Bf3 $17 {was necessary.}) 41... Kd6 $19 {[%emt 0:00:00]} 42. Rxg7 {[%emt 0:00:05]} Be4+ {[%emt 0:00:00]} 43. Kg1 {[%emt 0:02:13]} (43. Kh3 {is a better defense.}) 43... Rc8 {[%emt 0:00:00]} 44. Rg4 {[%emt 0:00:53]} Bd3 {[%emt 0:00:00]} ({Stronger than} 44... Rxc3 45. Rxe4 Kd5 46. Rf4 $11 (46. Re5+ Kxd4 47. Re6 Rxg3+ 48. Kf2 Rxa3 $11)) 45. Rh4 {[%emt 0:00:14]} Rxc3 {[%emt 0:00:00] Hoping for ...Rc1.} 46. Bf3 $2 {[%emt 0:00:13]} (46. Kf2) 46... b4 {[%emt 0:00:00]} 47. axb4 {[%emt 0:00:28]} axb4 {[%emt 0:00:00] Threatens to win with ...b3.} 48. Rxh6+ {[%emt 0:00:35]} (48. d5 {was the only defense.} Bc4 49. Kf2) 48... Kc7 {[%emt 0:00:00]} 49. d5 {[%emt 0:00:53] [#]} Bf5 $1 {[%emt 0:00:00]} ({Not} 49... b3 50. d6+ Kd8 51. Bg4 $11) 50. g4 {[%emt 0:01:45]} (50. d6+ $142 Kd7 51. Be2 Rc1+ 52. Kg2) 50... Rxf3 {[%emt 0:00:00]} 51. gxf5 {[%emt 0:00:01]} Rxf5 {[%emt 0:00:00] KR-KR} 52. Rc6+ {[%emt 0:02:18]} Kb7 {[%emt 0:00:00]} 53. Rc4 {[%emt 0:00:14]} Rxd5 {[%emt 0:00:00] ( -> ...Rb5)} 54. Kf2 {[%emt 0:00:08]} Rb5 {[%emt 0:00:00] Black mates.} 55. Rc2 {[%emt 0:00:37]} b3 {[%emt 0:00:00]} 56. Rb2 {[%emt 0:00:01]} Ka6 {[%emt 0:00:00]} 57. Ke3 {[%emt 0:00:14]} Ka5 {[%emt 0:00:00]} 58. Kd2 {[%emt 0:00:20]} Ka4 {[%emt 0:00:00]} 59. Kc1 {[%emt 0:00:05]} Rc5+ {[%emt 0:00:00]} 60. Kb1 {[%emt 0:01:08]} Rc2 {[%emt 0:00:00] Weighted Error Value: White=0.47/Black=0.06 (flawless)} 0-1

[Event "Cattolica Chess Festival 2022"]
[Site "Cattolica"]
[Date "2022.06.06"]
[Round "3.3"]
[White "Trost, Edvin"]
[Black "Milikow, Yoav"]
[Result "1/2-1/2"]
[ECO "E11"]
[WhiteElo "2366"]
[BlackElo "2410"]
[Annotator "TA"]
[PlyCount "46"]
[EventDate "2022.06.04"]
[EventCountry "ITA"]
[SourceTitle "playchess.com"]
[Source "ChessBase"]
[SourceQuality "1"]
[TimeControl "5400+30"]

{[%evp 12,46,16,0,39,33,30,41,44,36,40,47,53,50,41,52,45,18,21,21,42,25,13,21,21,13,13,17,34,33,45,22,66,0,0,0,0]} 1. d4 {[%emt 0:30:13]} Nf6 {[%emt 0:30:07]} 2. Nf3 {[%emt 0:00:51]} d5 {[%emt 0:00:12]} 3. c4 {[%emt 0:00:06]} e6 {[%emt 0:00:06]} 4. g3 {[%emt 0:00:44]} Bb4+ {[%emt 0:00:17]} 5. Bd2 {[%emt 0:00:12]} a5 {[%emt 0:00:24]} 6. Bg2 {[%emt 0:00:17]} O-O {[%emt 0:00:25]} 7. Qc2 {[%emt 0:00:47]} c5 {[%emt 0:00:26] E11: Bogo-Indian.} 8. cxd5 {[%emt 0:00:17] 8.cxd5 scores better than 8.dxc5.} cxd4 {[%emt 0:00:20]} 9. Nxd4 {[%emt 0:00:18]} Qb6 {[%emt 0:00:26] White is slightly better.} 10. e3 {[%emt 0:00:05]} exd5 {[%emt 0:00:11]} 11. O-O {[%emt 0:00:09]} Nc6 {[%emt 0:00:32]} 12. Nxc6 {[%emt 0:00:19]} bxc6 {[%emt 0:00:11]} 13. Rc1 {[%emt 0:00:06]} Rb8 {[%emt 0:01:37]} 14. Bxb4 {[%emt 0:00:24]} Qxb4 {[%emt 0:00:12]} 15. b3 {[%emt 0:00:04]} Be6 {[%emt 0:01:13][%cal Oc6c5]} 16. Nc3 {[%emt 0:00:48][%cal Bb1c3,Bc3e2,Be2f4][%mdl 32]} c5 {[%emt 0:05:10]} 17. Ne2 {[%emt 1:03:20]} Rfc8 {[%emt 0:03:08]} 18. Nf4 {[%emt 0:00:00]} c4 {[%emt 0:00:59]} 19. bxc4 {[%emt 0:00:00]} Rxc4 {[%emt 0:02:12]} 20. Qd1 {[%emt 0:00:00][%cal Rf4d5]} Rbc8 {[%emt 0:02:10] [#]} 21. Bf1 $146 {[%emt 0:00:00]} ({Predecessor:} 21. Rab1 Bf5 22. Nxd5 Bxb1 23. Rxc4 Qxc4 24. Ne7+ Kf8 25. Nxc8 Qd3 26. Qc1 g6 27. Bf1 {1-0 (39) Vidit,S (2723)-Abdusattorov,N (2661) Chess.com INT 2022}) 21... Bg4 {[%emt 0:02:14]} 22. Be2 {[%emt 0:00:00]} (22. Nxd5 $14 Nxd5 23. Rxc4 Rxc4 24. Qxd5) 22... Bxe2 $11 {[%emt 0:04:15]} 23. Nxe2 {[%emt 0:00:00]} g6 {[%emt 0:01:07] Weighted Error Value: White=0.07 (flawless) /Black=0.06 (flawless)} 1/2-1/2